bitfinex-derivatives/quotes_SOLF0:USTF0_20240930
["timestamp","ask_amount","ask_price","bid_price","bid_amount"]
[1727736986228,8.91,154.77,154.74,3.2319]
[1727736986427,8.91,154.77,154.74,3.2318]
[1727736988234,12.1414,154.77,154.74,3.2318]
[1727736989135,12.1414,154.77,154.73,3.35712]
[1727736989643,1.3528,154.81,154.73,0.12502]
[1727736989845,8.91,154.78,154.73,0.12502]
[1727736990638,12.1413,154.78,154.74,3.2318]
[1727736992142,1.3528,154.81,154.73,0.12502]
[1727736992334,8.91,154.78,154.73,0.12502]
[1727736992536,12.1413,154.78,154.74,3.2319]
[1727736997142,3.2309,154.8,154.76,3.2314]
[1727736997343,8.91,154.79,154.76,3.2314]
[1727736998043,12.1411,154.79,154.76,3.2314]
[1727737000043,3.2307,154.81,154.78,3.2311]
[1727737000244,12.1407,154.81,154.78,3.2311]
[1727737000948,3.2307,154.81,154.78,3.2311]
[1727737001149,12.1407,154.81,154.77,3.2313]
[1727737001441,3.2307,154.81,154.77,3.2313]
[1727737001635,12.1407,154.81,154.77,3.2313]
[1727737002243,8.91,154.78,154.76,3.2315]
[1727737002447,8.91,154.78,154.73,9.03502]
[1727737002946,12.1412,154.78,154.74,3.2319]
[1727737003941,12.1412,154.78,154.75,3.2318]
[1727737004342,12.1412,154.78,154.73,0.12502]
[1727737004551,12.1412,154.78,154.74,3.2319]
[1727737004850,8.91,154.77,154.73,0.12502]
[1727737005149,8.91,154.77,154.74,3.232]
[1727737005451,4.56129684,154.82,154.73,9.03502]
[1727737005748,8.91,154.78,154.75,3.2317]
[1727737006340,12.1412,154.78,154.75,3.2317]
[1727737007039,12.1412,154.78,154.73,0.12502]
[1727737007240,8.91,154.77,154.74,3.2319]
[1727737008539,12.1414,154.77,154.74,3.2319]
[1727737009545,8.91,154.77,154.74,3.2319]
[1727737013962,12.1412,154.78,154.74,3.2319]
[1727737014862,3.2315,154.77,154.73,3.35712]
[1727737015061,3.2315,154.77,154.73,12.26712]
[1727737015459,3.2315,154.77,154.73,9.03502]
[1727737016360,3.2315,154.77,154.74,3.232]
[1727737021363,8.91,154.75,154.73,0.12502]
[1727737021764,8.91,154.76,154.73,0.12502]
[1727737022069,8.91,154.76,154.73,3.35722]
[1727737022472,12.1416,154.76,154.73,0.12502]
[1727737022859,8.91,154.74,154.73,0.12502]
[1727737024269,12.142,154.74,154.73,0.12502]
[1727737024866,8.91,154.74,154.61,6.59432]
[1727737025079,8.91,154.68,154.62,1.36]
[1727737025264,8.91,154.68,154.62,4.54679932]
[1727737025463,12.1432,154.68,154.62,13.45679932]
[1727737026059,12.1432,154.68,154.62,10.27]
[1727737027775,12.1432,154.68,154.62,1.36]
[1727737028073,3.2339,154.65,154.61,0.12502]
[1727737028272,2.4614,154.72,154.62,8.91]
[1727737028473,8.91,154.67,154.62,8.91]
[1727737028871,8.91,154.67,154.63,3.2341]
[1727737029060,8.91,154.68,154.64,8.91]
[1727737029264,8.91,154.69,154.65,8.91]
[1727737029461,8.91,154.69,154.65,12.1438]
[1727737029664,1.2598,154.72,154.65,8.91]
[1727737029868,8.91,154.7,154.65,8.91]
[1727737030070,0.12502,154.73,154.66,8.91]
[1727737030277,8.91,154.72,154.66,8.91]
[1727737030475,0.12502,154.73,154.68,8.91]
[1727737030676,8.91,154.72,154.68,8.91]
[1727737031276,8.91,154.72,154.69,3.233]
[1727737031675,9.03502,154.73,154.69,8.91]
[1727737031877,9.03502,154.73,154.7,3.2327]
[1727737032768,9.03502,154.73,154.69,8.91]
[1727737032969,9.03502,154.73,154.69,12.143]
[1727737034577,12.26722,154.73,154.69,12.143]
[1727737037069,3.2326,154.72,154.68,12.1432]
[1727737037275,8.91,154.7,154.66,8.91]
[1727737037873,8.91,154.7,154.67,3.2334]
[1727737038068,8.91,154.7,154.65,1.2426]
[1727737038271,8.91,154.7,154.65,10.1526]
[1727737038468,8.91,154.7,154.66,8.91]
[1727737039273,12.143,154.7,154.66,12.1435]
[1727737041175,12.26732,154.73,154.68,12.1431]
[1727737041373,3.35732,154.73,154.68,12.1431]
[1727737041569,9.03502,154.73,154.68,8.91]
[1727737041781,3.2326,154.71,154.68,8.91]
[1727737042081,9.03502,154.73,154.68,8.91]
[1727737042282,3.2326,154.71,154.68,8.91]
[1727737042482,9.03502,154.73,154.65,10.1526]
[1727737042483,8.91,154.7,154.65,10.1526]
[1727737042779,12.143,154.7,154.65,13.3863]
[1727737042977,12.143,154.7,154.65,10.1526]
[1727737043778,3.233,154.7,154.66,8.91]
[1727737044282,3.233,154.7,154.66,12.1437]
[1727737046083,3.233,154.7,154.67,8.91]
[1727737046883,8.91,154.72,154.67,8.91]
[1727737047080,3.2327,154.71,154.67,8.91]
[1727737047278,0.12502,154.73,154.7,8.91]
[1727737048678,9.03502,154.73,154.68,8.91]
[1727737049185,3.2325,154.72,154.68,12.1432]
[1727737049385,9.03502,154.73,154.68,8.91]
[1727737049978,3.2325,154.72,154.68,12.1432]
[1727737050375,9.03502,154.73,154.68,8.91]
[1727737050581,3.2328,154.71,154.67,3.2334]
[1727737050787,3.2328,154.71,154.67,12.1434]
[1727737051387,8.91,154.68,154.65,1.2426]
[1727737051688,3.2337,154.66,154.64,69.84]
[1727737051889,8.91,154.67,154.64,69.84]
[1727737052083,3.2338,154.66,154.64,69.84]
[1727737052287,12.1438,154.66,154.61,12.26952]
[1727737052477,8.91,154.66,154.61,9.03502]
[1727737053485,8.91,154.67,154.63,8.91]
[1727737053987,12.1436,154.67,154.63,8.91]
[1727737056782,8.91,154.67,154.61,0.12502]
[1727737056985,3.2338,154.66,154.61,12.26962]
[1727737057385,12.1438,154.66,154.61,12.26962]
[1727737057892,12.1438,154.66,154.62,3.2345]
[1727737057893,3.2338,154.66,154.62,3.2345]
[1727737059188,8.91,154.67,154.63,12.1441]
[1727737059889,12.1436,154.67,154.63,12.1441]
[1727737060596,8.91,154.67,154.63,8.91]
[1727737061292,12.1435,154.67,154.63,8.91]
[1727737063901,12.1442,154.64,154.61,0.12502]
[1727737064098,8.91,154.63,154.61,0.12502]
[1727737064599,3.2345,154.62,154.61,0.12502]
[1727737066003,12.1445,154.62,154.61,0.12502]
[1727737069999,31.71394133,154.71,154.61,0.12502]
[1727737070204,8.91,154.62,154.61,0.12502]
[1727737072101,12.1445,154.62,154.61,0.12502]
[1727737075598,5.83864133,154.71,154.61,0.12502]
[1727737075798,3.2336,154.67,154.62,3.2343]
[1727737076003,8.91,154.66,154.61,9.03502]
[1727737076510,12.1437,154.66,154.61,12.26952]
[1727737076808,12.1437,154.66,154.61,9.03502]
[1727737077507,12.1437,154.66,154.62,3.2344]
[1727737078003,12.1437,154.66,154.61,12.26962]
[1727737079510,8.91,154.66,154.61,9.03502]
[1727737079707,8.91,154.66,154.61,0.12502]
[1727737079909,8.91,154.64,154.61,0.12502]
[1727737081416,8.91,154.64,154.61,3.35962]
[1727737081613,8.91,154.66,154.61,9.03502]
[1727737081820,3.2333,154.68,154.64,3.234]
[1727737082010,8.91,154.67,154.63,8.91]
[1727737082311,12.1437,154.67,154.63,3.2342]
[1727737082912,8.91,154.66,154.63,3.2342]
[1727737083500,2.6184,154.71,154.63,8.91]
[1727737083702,2.6184,154.71,154.65,8.91]
[1727737083899,8.91,154.7,154.65,8.91]
[1727737084205,8.91,154.69,154.65,8.91]
[1727737084406,8.91,154.69,154.63,12.10121904]
[1727737084809,12.1432,154.69,154.64,3.234]
[1727737086205,1.3127,154.71,154.63,12.10121904]
[1727737086409,12.1425,154.72,154.68,8.91]
[1727737086713,1.3419,154.75,154.67,8.91]
[1727737086714,8.91,154.71,154.67,8.91]
[1727737087015,8.91,154.7,154.65,8.91]
[1727737088317,12.1429,154.7,154.66,3.2335]
[1727737093911,8.91,154.7,154.65,8.91]
[1727737094108,3.233,154.69,154.65,12.1438]
[1727737094513,12.1429,154.7,154.66,3.2336]
[1727737101526,8.91,154.7,154.66,3.2336]
[1727737101727,8.91,154.68,154.63,12.21219936]
[1727737102224,8.91,154.66,154.62,1.2752]
[1727737103326,12.1437,154.66,154.62,4.5096]
[1727737104625,8.91,154.65,154.61,69.96502]
[1727737104930,3.2341,154.64,154.61,69.96502]
[1727737105333,8.91,154.62,154.61,69.96502]
[1727737105731,8.91,154.63,154.61,69.96502]
[1727737106535,8.91,154.63,154.61,0.12502]
[1727737111232,12.1445,154.62,154.61,0.12502]
[1727737111841,1.3492,154.66,154.61,0.12502]
[1727737112039,8.91,154.63,154.61,0.12502]
[1727737113239,12.1443,154.63,154.61,0.12502]
[1727737114044,3.234,154.65,154.61,0.12502]
[1727737114245,8.91,154.63,154.61,0.12502]
[1727737115443,12.1443,154.63,154.61,0.12502]
[1727737115640,8.91,154.62,154.61,0.12502]
[1727737116341,12.1445,154.62,154.61,0.12502]
[1727737117043,8.91,154.62,154.61,0.12502]
[1727737118544,12.1445,154.62,154.61,0.12502]
[1727737120245,3.2352,154.59,154.55,69.98502]
[1727737120445,8.91,154.59,154.55,69.98502]
[1727737120639,8.91,154.59,154.56,3.2357]
[1727737122143,1.3492,154.66,154.56,3.2357]
[1727737122342,1.3492,154.66,154.55,3.36092]
[1727737122343,8.91,154.58,154.55,3.36092]
[1727737123139,8.91,154.58,154.55,0.12502]
[1727737123347,12.1455,154.58,154.55,0.12502]
[1727737124948,12.1456,154.57,154.55,0.12502]
[1727737125246,8.91,154.58,154.55,0.12502]
[1727737126239,12.1454,154.58,154.55,0.12502]
[1727737127440,1.3492,154.66,154.55,0.12502]
[1727737127441,3.2352,154.59,154.55,0.12502]
[1727737127636,8.91,154.58,154.55,3.36092]
[1727737127846,1.3492,154.66,154.55,12.27092]
[1727737128151,8.91,154.6,154.55,12.27092]
[1727737128546,3.2348,154.61,154.57,12.1454]
[1727737128749,8.91,154.63,154.58,8.91]
[1727737128948,8.91,154.62,154.57,8.91]
[1727737129147,8.91,154.61,154.55,0.12502]
[1727737129446,8.91,154.6,154.55,9.03502]
[1727737130343,12.1451,154.6,154.56,3.2356]
[1727737130540,8.91,154.6,154.55,0.12502]
[1727737130947,8.91,154.59,154.55,0.12502]
[1727737132253,12.1453,154.59,154.55,0.12502]
[1727737132751,8.91,154.57,154.55,0.12502]
[1727737132951,8.91,154.56,154.55,0.12502]
[1727737133946,8.91,154.57,154.55,0.12502]
[1727737136352,12.1456,154.57,154.55,0.12502]
[1727737136745,8.91,154.56,154.55,0.12502]
[1727737136947,12.1457,154.56,154.55,0.12502]
[1727737137147,8.91,154.56,154.55,0.12502]
[1727737137750,3.2356,154.57,154.55,0.12502]
[1727737137953,8.91,154.57,154.55,0.12502]
[1727737141050,12.1455,154.57,154.55,0.12502]
[1727737141454,7.8167,154.66,154.55,9.03502]
[1727737141646,8.91,154.6,154.55,9.03502]
[1727737141844,12.145,154.6,154.56,3.2357]
[1727737143248,8.91,154.6,154.55,0.12502]
[1727737143464,3.2351,154.59,154.55,3.36092]
[1727737143960,12.145,154.6,154.56,3.2357]
[1727737144354,8.91,154.57,154.55,0.12502]
[1727737144557,12.1456,154.57,154.55,0.12502]
[1727737144757,8.91,154.57,154.55,0.12502]
[1727737148360,3.2355,154.58,154.55,0.12502]
[1727737148564,12.1455,154.58,154.55,0.12502]
[1727737149465,3.2355,154.57,154.55,0.12502]
[1727737149661,8.91,154.58,154.55,0.12502]
[1727737149967,8.91,154.57,154.55,0.12502]
[1727737150261,3.2357,154.56,154.55,0.12502]
[1727737150668,12.1457,154.56,154.55,0.12502]
[1727737152458,3.2362,154.54,154.49,73.23689448]
[1727737152663,8.91,154.53,154.5,3.2369]
[1727737153557,8.91,154.51,154.49,0.12502]
[1727737153759,40.0245,154.6,154.44,0.12518]
[1727737153760,3.2376,154.48,154.44,0.12518]
[1727737153959,8.91,154.47,154.44,0.12518]
[1727737154770,12.1477,154.47,154.44,0.12518]
[1727737155671,8.91,154.47,154.44,0.12518]
[1727737155960,8.91,154.45,154.44,0.12518]
[1727737156761,8.91,154.46,154.44,0.12518]
[1727737158171,12.1479,154.46,154.44,0.12518]
[1727737158573,8.91,154.46,154.44,0.12518]
[1727737160972,8.91,154.48,154.44,3.36328]
[1727737161173,8.91,154.48,154.44,0.12518]
[1727737162070,8.91,154.48,154.44,3.36308]
[1727737162275,8.91,154.47,154.44,0.12518]
[1727737163678,12.1472,154.48,154.44,9.03518]
[1727737164374,8.91,154.47,154.44,0.12518]
[1727737165382,12.1474,154.47,154.44,0.12518]
[1727737165681,2.7106,154.52,154.44,9.03518]
[1727737165876,3.2372,154.48,154.45,8.91]
[1727737170079,3.2372,154.48,154.45,12.1477]
[1727737173977,3.237,154.49,154.46,3.2374]
[1727737174282,12.147,154.49,154.46,3.2374]
[1727737181289,8.91,154.49,154.44,0.12518]
[1727737181589,8.91,154.47,154.44,0.12518]
[1727737181890,3.2375,154.47,154.44,3.36308]
[1727737182093,8.91,154.48,154.44,3.36308]
[1727737182285,8.91,154.48,154.44,0.12518]
[1727737182980,3.2375,154.46,154.44,0.12518]
[1727737188400,3.2377,154.45,154.44,0.12518]
[1727737192209,3.2376,154.46,154.44,0.12518]
[1727737193110,8.91,154.48,154.44,0.12518]
[1727737193313,3.2377,154.45,154.44,0.12518]
[1727737194013,8.91,154.48,154.44,0.12518]
[1727737194214,3.2376,154.46,154.44,0.12518]
[1727737196308,2.7106,154.52,154.44,9.03518]
[1727737196511,8.91,154.49,154.44,9.03518]
[1727737197007,3.2377,154.46,154.44,9.03518]
[1727737200115,2.7106,154.52,154.45,8.91]
[1727737200116,8.91,154.5,154.45,8.91]
[1727737200312,2.7106,154.52,154.44,0.12518]
[1727737200512,2.7106,154.52,154.44,9.03518]
[1727737200513,8.91,154.5,154.44,9.03518]
[1727737200713,3.2377,154.46,154.44,0.12518]
[1727737201314,8.91,154.5,154.44,9.03518]
[1727737201715,3.2376,154.46,154.44,9.03518]
[1727737201914,8.91,154.48,154.44,0.12518]
[1727737202417,3.2376,154.46,154.44,0.12518]
[1727737202613,8.91,154.46,154.44,0.12518]
[1727737203220,8.91,154.46,154.43,0.12502]
[1727737203421,8.91,154.44,154.43,0.12502]
[1727737203819,12.1479,154.44,154.43,0.12502]
[1727737204319,3.2387,154.41,154.38,69.94]
[1727737204512,8.91,154.44,154.38,69.94]
[1727737204713,8.91,154.42,154.38,69.94]
[1727737205109,3.2386,154.41,154.38,69.94]
[1727737205513,3.2386,154.41,154.37,12.27432]
[1727737206416,8.91,154.43,154.37,9.03502]
[1727737206720,8.91,154.43,154.39,8.91]
[1727737207114,3.2383,154.43,154.39,8.91]
[1727737207314,8.91,154.44,154.39,8.91]
[1727737207920,3.2386,154.41,154.39,8.91]
[1727737208116,3.2386,154.41,154.37,0.12502]
[1727737208321,3.2388,154.41,154.38,8.91]
[1727737209518,3.2385,154.42,154.38,12.1492]
[1727737209718,3.2385,154.42,154.39,8.91]
[1727737210022,8.91,154.45,154.37,0.12502]
[1727737210224,3.2382,154.43,154.4,8.91]
[1727737211023,2.506,154.47,154.4,8.91]
[1727737211218,1.2702,154.47,154.42,8.91]
[1727737211526,1.2702,154.47,154.44,8.91]
[1727737211925,10.1802,154.47,154.42,8.91]
[1727737212127,8.91,154.46,154.42,8.91]
[1727737212424,8.91,154.46,154.41,3.2384]
[1727737212628,8.91,154.46,154.41,12.1484]
[1727737213127,3.238,154.44,154.41,12.1484]
[1727737213328,8.91,154.45,154.4,3.2387]
[1727737213624,8.91,154.44,154.38,1.284]
[1727737213827,8.91,154.44,154.39,8.91]
[1727737213828,3.2383,154.43,154.39,8.91]
[1727737214723,3.2383,154.43,154.4,8.91]
[1727737215228,3.2383,154.43,154.4,12.1488]
[1727737215527,8.91,154.44,154.37,0.12502]
[1727737215723,8.91,154.44,154.38,8.91]
[1727737216524,3.2383,154.43,154.38,12.1492]
[1727737216725,1.2702,154.47,154.38,8.91]
[1727737216924,8.91,154.44,154.38,8.91]
[1727737217129,3.2384,154.42,154.39,3.2389]
[1727737217631,1.2702,154.47,154.39,8.91]
[1727737217823,8.91,154.44,154.37,0.12502]
[1727737218024,8.91,154.42,154.37,9.03502]
[1727737218835,3.2389,154.4,154.37,3.36442]
[1727737219230,8.91,154.42,154.37,0.12502]
[1727737219426,3.2389,154.4,154.37,3.36442]
[1727737220736,3.239,154.39,154.37,0.12502]
[1727737221534,3.2392,154.38,154.37,0.12502]
[1727737221725,8.91,154.39,154.37,0.12502]
[1727737221930,8.91,154.41,154.37,0.12502]
[1727737222228,3.2392,154.38,154.37,0.12502]
[1727737222436,8.91,154.41,154.37,0.12502]
[1727737223034,3.239,154.39,154.37,0.12502]
[1727737223242,3.239,154.39,154.37,9.03502]
[1727737224839,1.207,154.46,154.43,3.2381]
[1727737224840,3.2377,154.46,154.43,3.2381]
[1727737225038,8.91,154.47,154.42,8.91]
[1727737225235,8.91,154.44,154.38,2.6138]
[1727737225435,3.2387,154.41,154.37,3.36432]
[1727737225740,8.91,154.41,154.37,9.03502]
[1727737226131,3.2389,154.4,154.37,9.03502]
[1727737228127,4.61158454,154.44,154.37,0.12502]
[1727737228128,8.91,154.39,154.37,0.12502]
[1727737228751,12.1492,154.38,154.37,1e-08]
[1727737229136,3.2392,154.38,154.37,1e-08]
[1727737229641,3.2389,154.4,154.37,8.91000001]
[1727737229943,3.2389,154.4,154.37,1e-08]
[1727737229944,12.1489,154.4,154.37,1e-08]
[1727737230235,3.2386,154.41,154.37,3.23920001]
[1727737230432,8.91,154.4,154.37,1e-08]
[1727737230841,12.1489,154.4,154.37,1e-08]
[1727737231033,8.91,154.4,154.37,1e-08]
[1727737232139,0.12501999,154.43,154.39,8.91]
[1727737232335,0.12501999,154.43,154.4,8.91]
[1727737232939,0.12501999,154.43,154.39,8.91]
[1727737233641,8.91,154.41,154.37,1e-08]
[1727737233841,8.91,154.4,154.37,1e-08]
[1727737235244,8.91,154.38,154.37,1e-08]
[1727737236344,12.1492,154.38,154.37,1e-08]
[1727737236942,1.32,154.42,154.37,1e-08]
[1727737237138,8.91,154.38,154.37,1e-08]
[1727737237740,12.1492,154.38,154.37,1e-08]
[1727737238842,8.91,154.38,154.3,73.2007]
[1727737239147,8.91,154.34,154.31,3.36562]
[1727737239544,8.91,154.33,154.31,0.12502]
[1727737239941,12.1503,154.33,154.31,0.12502]
[1727737240140,8.91,154.33,154.31,0.12502]
[1727737240341,3.21742883,154.4,154.31,0.12502]
[1727737240650,8.91,154.35,154.31,0.12502]
[1727737241148,12.15,154.35,154.31,3.36552]
[1727737241348,8.91,154.35,154.31,0.12502]
[1727737241542,8.91,154.32,154.31,0.12502]
[1727737242145,8.91,154.33,154.31,0.12502]
[1727737242554,8.91,154.32,154.31,0.12502]
[1727737242745,12.1505,154.32,154.31,0.12502]
[1727737243452,3.2415,154.27,154.22,69.98]
[1727737243695,8.91,154.26,154.22,69.98]
[1727737243944,1.2631,154.31,154.22,69.98]
[1727737244148,8.91,154.28,154.23,8.91]
[1727737244353,1.2631,154.31,154.24,8.91]
[1727737244650,1.2631,154.31,154.19,0.12502]
[1727737244847,8.91,154.26,154.23,3.2423]
[1727737245055,1.2631,154.31,154.19,0.12502]
[1727737245348,8.91,154.3,154.24,8.91]
[1727737245540,8.91,154.27,154.22,1.3381]
[1727737245746,8.91,154.26,154.19,0.12502]
[1727737245946,8.91,154.26,154.19,9.03502]
[1727737246146,3.2422,154.24,154.19,0.12502]
[1727737246344,8.91,154.24,154.19,9.03502]
[1727737246657,1.3339,154.3,154.21,8.91]
[1727737246857,8.91,154.27,154.21,8.91]
[1727737247047,8.91,154.27,154.22,8.91]
[1727737247649,1.3339,154.3,154.19,0.12502]
[1727737247650,8.91,154.25,154.19,0.12502]
[1727737247957,8.91,154.25,154.2,8.91]
[1727737248149,12.152,154.25,154.2,8.91]
[1727737248354,8.91,154.25,154.2,8.91]
[1727737248953,8.91,154.25,154.2,12.153]
[1727737249855,8.91,154.22,154.19,0.12502]
[1727737252454,12.1526,154.22,154.19,0.12502]
[1727737253451,3.2428,154.21,154.19,0.12502]
[1727737255157,12.1528,154.21,154.19,0.12502]
[1727737255459,12.153,154.2,154.19,0.12502]
[1727737255759,3.243,154.2,154.19,0.12502]
[1727737256062,12.1529,154.21,154.19,0.12502]
[1727737256252,1.2492,154.25,154.19,0.12502]
[1727737256557,12.1528,154.21,154.19,0.12502]
[1727737258357,3.243,154.2,154.19,0.12502]
[1727737258550,12.153,154.2,154.19,0.12502]
[1727737259160,1.2492,154.25,154.19,0.12502]
[1727737259360,8.91,154.21,154.19,0.12502]
[1727737259760,3.243,154.2,154.19,0.12502]
[1727737259964,8.91,154.21,154.19,0.12502]
[1727737260266,12.1529,154.21,154.19,0.12502]
[1727737260965,8.91,154.21,154.19,0.12502]
[1727737262966,1.2492,154.25,154.19,0.12502]
[1727737263156,8.91,154.23,154.19,0.12502]
[1727737263656,8.91,154.21,154.19,0.12502]
[1727737265965,12.153,154.21,154.19,0.12502]
[1727737266962,3.243,154.2,154.19,0.12502]
[1727737267154,12.153,154.2,154.19,0.12502]
[1727737267562,3.2435,154.18,154.15,0.12518]
[1727737267770,1.2542,154.24,154.15,0.12518]
[1727737267967,8.91,154.18,154.15,0.12518]
[1727737268564,8.91,154.18,154.15,3.36898]
[1727737268764,8.91,154.18,154.15,0.12518]
[1727737268965,1.2542,154.24,154.16,3.2438]
[1727737269160,1.2542,154.24,154.15,9.03518]
[1727737269366,8.91,154.2,154.15,9.03518]
[1727737269566,8.91,154.2,154.16,3.2438]
[1727737270259,8.91,154.2,154.17,3.2435]
[1727737270461,8.91,154.2,154.15,9.03518]
[1727737271169,8.91,154.2,154.16,3.2436]
[1727737271566,8.91,154.2,154.16,3.2438]
[1727737272370,12.153,154.2,154.16,3.2438]
[1727737272772,8.91,154.2,154.16,3.2438]
[1727737272969,8.91,154.19,154.15,0.12518]
[1727737274473,8.91,154.19,154.16,3.2438]
[1727737274969,8.91,154.2,154.16,8.91]
[1727737275668,8.91,154.2,154.18,3.2434]
[1727737275870,1.37422,154.25,154.17,8.91]
[1727737276071,8.91,154.23,154.19,8.91]
[1727737276668,8.91,154.23,154.21,3.2427]
[1727737278178,8.91,154.22,154.18,8.91]
[1727737278780,8.91,154.22,154.19,3.2431]
[1727737280173,8.91,154.22,154.2,3.243]
[1727737280370,0.12502,154.25,154.19,8.91]
[1727737280569,9.03502,154.25,154.2,8.91]
[1727737280769,9.03502,154.25,154.22,3.2425]
[1727737280983,9.03502,154.25,154.2,8.91]
[1727737280984,9.03502,154.25,154.19,8.91]
[1727737281279,8.91,154.22,154.15,0.12518]
[1727737281671,8.91,154.22,154.17,8.91]
[1727737281877,8.91,154.22,154.18,3.2432]
[1727737282175,8.91,154.22,154.17,8.91]
[1727737282375,8.91,154.22,154.18,3.2432]
[1727737282877,8.91,154.22,154.17,8.91]
[1727737283078,8.91,154.21,154.15,9.03518]
[1727737283477,8.91,154.21,154.15,12.27918]
[1727737283478,3.2431,154.2,154.15,12.27918]
[1727737283874,8.91,154.19,154.15,3.36918]
[1727737284386,8.91,154.18,154.15,0.12518]
[1727737284878,12.1535,154.18,154.15,0.12518]
[1727737285083,8.91,154.18,154.15,0.12518]
[1727737287685,12.1534,154.18,154.15,0.12518]
[1727737287881,8.91,154.17,154.15,0.12518]
[1727737288091,8.91,154.16,154.15,0.12518]
[1727737288285,8.91,154.16,154.13,0.12502]
[1727737288490,8.91,154.16,154.01,6.60502]
[1727737288491,8.91,154.14,154.01,76.66502]
[1727737288689,0.12502,154.19,154.03,1.2463]
[1727737288879,8.91,154.1,154.03,1.2463]
[1727737289086,8.91,154.11,154.06,8.91]
[1727737289285,3.2439,154.16,154.1,12.155]
[1727737289486,8.91,154.14,154.1,8.91]
[1727737289686,0.12502,154.19,154.15,3.2439]
[1727737289989,8.91,154.16,154.08,1.3401]
[1727737290190,8.91,154.13,154.02,9.77519463]
[1727737290391,8.91,154.13,154.08,8.91]
[1727737291088,8.91,154.11,154.04,1.3401]
[1727737291294,8.91,154.11,154.06,8.91]
[1727737292594,12.155,154.11,154.06,8.91]
[1727737292791,8.91,154.11,154.06,8.91]
[1727737293094,8.91,154.1,154.05,12.1561]
[1727737293493,8.91,154.09,154.03,1.288]
[1727737293693,12.1551,154.1,154.03,1.288]
[1727737293995,1.2418,154.17,154.07,9.03502]
[1727737294496,8.91,154.12,154.07,12.28072]
[1727737294697,8.91,154.12,154.07,9.03502]
[1727737294992,8.91,154.13,154.07,12.28062]
[1727737295297,8.91,154.12,154.07,9.03502]
[1727737295596,12.1548,154.12,154.07,9.03502]
[1727737297195,12.1548,154.12,154.07,0.12502]
[1727737297491,2.454,154.17,154.07,0.12502]
[1727737297492,12.1549,154.11,154.07,0.12502]
[1727737297992,2.454,154.17,153.82,9.7465467]
[1727737297993,19.41,154.07,153.82,9.7465467]
[1727737298193,19.41,154.07,153.81,0.8365467]
[1727737298392,3.2476,153.98,153.85,8.91]
[1727737298592,22.68512623,154.07,153.85,8.91]
[1727737298593,8.91,153.92,153.85,8.91]
[1727737298791,19.41,154.05,153.85,8.91]
[1727737298994,3.2487,153.93,153.77,0.12502]
[1727737299197,3.2816187,153.95,153.87,8.91]
[1727737299495,3.27512623,154.07,153.77,0.12502]